Cogmind - Beta 10.2 @@@ ROGUE MODE // 2022.03.08 @ 22:16:52 Player: Platnium Result: Destroyed by G-34 Mercenary with Small Laser Performance ------------- Evolutions (1) 500 Regions Visited (2) 400 Robots Destroyed (11) 55 Value Destroyed (253) 253 Prototype IDs (0) 0 Alien Tech Used (0) 0 Bonus (0) 0 TOTAL SCORE: 1208 Bonus ------- None Cogmind --------- Core Integrity 0/400 Matter 187/300 Energy 250/250 System Corruption 7% Temperature Cool (6) Movement Core (650) Ox12 Location -9/Materials Parts ------- > --- POWER (1) -------- Ion Engine > --- PROPULSION (2) --- (None) > --- UTILITY (4) ------ High-capacity Storage Unit > --- WEAPON (2) ------- (None) > --- INVENTORY (12) --- (None) Peak State ------------ > --- POWER ------------ Light Ion Engine > --- PROPULSION ------- Wheel Wheel > --- UTILITY ---------- High-capacity Storage Unit Core Shielding Utility Shielding Tractor Beam > --- WEAPON ----------- Light Assault Rifle Grenade Launcher > --- INVENTORY -------- Ion Engine Sensor Array Medium Laser [Rating: 9] Favorites ----------- Power Light Ion Engine Engine Light Ion Engine Propulsion Wheel Leg Aluminum Leg Wheel Wheel Utility Utility Shielding Device Sensor Array Storage High-capacity Storage Unit Processor Signal Interpreter Protection Utility Shielding Weapon Light Assault Rifle Energy Gun Medium Laser Ballistic Gun Light Assault Rifle Launcher Grenade Launcher Build | -11 -10 -9 ------- Run | Scr Mat Mat Slots Evolved 2 | . . 2 Power . | . . . Propulsion . | . . . Utility 2 | . . 2 Weapon . | . . . Parts Attached 26 | 6 14 6 Power 3 | 2 . 1 Engine 3 | 2 . 1 Core . | . . . Reactor . | . . . Propulsion 9 | 2 7 . Treads . | . . . Leg 4 | 2 2 . Wheel 5 | . 5 . Hover . | . . . Flight . | . . . Utility 9 | . 6 3 Device 4 | . 2 2 Storage 1 | . 1 . Processor 1 | . 1 . Hackware . | . . . Protection 3 | . 2 1 Artifact . | . . . Weapon 5 | 2 1 2 Energy Gun 1 | . . 1 Energy Cannon . | . . . Ballistic Gun 3 | 2 . 1 Ballistic Cannon . | . . . Launcher 1 | . 1 . Special Weapon . | . . . Impact Weapon . | . . . Slashing Weapon . | . . . Piercing Weapon . | . . . Special Melee Weapon . | . . . Unidentified Prototypes . | . . . Parts Lost 11 | . . 11 Power 1 | . . 1 Propulsion 2 | . . 2 Utility 4 | . . 4 Weapon 4 | . . 4 Highest Loss Streak 11 | . . 11 Average Slot Usage (%) 89 | . 97 56 Engine 12 | . 14 7 Leg 4 | . 5 . Wheel 19 | . 22 6 Device 5 | . 6 4 Storage 2 | . . 11 Processor 3 | . 4 . Protection 14 | . 14 15 Ballistic Gun 20 | . 23 6 Launcher 3 | . 4 1 Naked Turns . | . . . Heaviest Build 42 | 8 40 42 Greatest Support 26 | 20 26 20 Greatest Overweight (x) 13 | . 1 13 Average Overweight (x) . | . . 4 Largest Inventory Capacity 12 | 4 12 12 Average Capacity 5 | 4 4 12 Most Carried 5 | 4 5 4 Average Carried 3 | 2 3 1 Final Capacity 12 | 4 12 12 Final Carried 5 | 4 5 . Class Distribution -------------------- 100% | Mutant Dominant Class ---------------- Mutant | -10/Materials Mutant | -9/Materials Resources | -11 -10 -9 ----------- Run | Scr Mat Mat Matter Collected 387 | 256 99 32 Remotely 16 | . . 16 Salvage Created 216 | . 161 55 Parts 21 | . 16 5 Haulers Intercepted . | . . . Recyclers Shooed . | . . . Parts Field Recycled . | . . . Retrieved Matter . | . . . Parts Self-Destructed . | . . . Prevented . | . . . Kills | -11 -10 -9 ------- Run | Scr Mat Mat Combat Hostiles Destroyed 7 | . 4 3 Guns 3 | . . 3 AOE 4 | . 4 . Classes Destroyed 4 | . 3 1 Operator 2 | . 2 . Watcher 2 | . 2 . Swarmer 3 | . . 3 Grunt 4 | . 4 . Best Kill Streak 5 | . 5 2 Combat Bots Only 4 | . 4 2 Max Kills in Single Turn 3 | . 3 1 Gunslinging . | . . . Exploded 2 | . 2 . Melee . | . . . Uniques/NPCs Destroyed . | . . . Combat | -11 -10 -9 -------- Run | Scr Mat Mat Damage Taken 1223 | . 237 986 Core 480 | . 79 401 Absorbed by Shields . | . . . Core Remaining (%) 84 | 100 68 . Volleys Fired 35 | . 20 15 Largest 2 | . 2 2 Hottest 70 | . 40 70 Shots Fired 46 | . 26 20 Gun 41 | . 21 20 Cannon . | . . . Launcher 5 | . 5 . Special . | . . . Kinetic 36 | . 21 15 Thermal 5 | . . 5 Explosive 5 | . 5 . Electromagnetic . | . . . Robot Hit Streak 6 | . 3 6 Robot Miss Streak 7 | . 7 2 Penetration Max . | . . . Secondary Targets . | . . . Shots Hit Robots 25 | . 11 14 Core Hits 22 | . 18 4 Critical Hits . | . . . Critical Kills . | . . . Critical Parts Destroyed . | . . . Melee Attacks . | . . . Impact . | . . . Slashing . | . . . Piercing . | . . . Sneak Attacks . | . . . Combat Hostiles . | . . . Follow-up Attacks . | . . . Damage Inflicted 532 | . 397 135 Guns 242 | . 110 132 Cannons . | . . . Explosions 287 | . 287 . Melee . | . . . Ramming 3 | . . 3 Kinetic 192 | . 110 82 Thermal 50 | . . 50 Explosive 287 | . 287 . Electromagnetic . | . . . Impact . | . . . Slashing . | . . . Piercing . | . . . Highest Corruption 7 | . . 7 Average Corruption 6 | . . 6 Corruption Purged . | . . . Effects 1 | . . 1 Matter Fused 1 | . . 1 Overload Shots . | . . . Overflow Damage . | . . . Projectiles . | . . . Explosions . | . . . Melee . | . . . Knockbacks . | . . . Impact . | . . . Kinetic . | . . . Secondary . | . . . Self-Inflicted Damage 19 | . 19 . Shots 1 | . 1 . Rammed 3 | . . 3 Targets Rammed 3 | . . 3 Kicked . | . . . Crushed . | . . . Highest Temperature 27 | . 21 27 Average Temperature 11 | . 10 12 Received Heat Transfer 279 | . 123 156 Siege Activations . | . . . Robots Corrupted . | . . . Combat Hostiles . | . . . Parts Fried . | . . . Impact Corruptions . | . . . Robots Melted . | . . . Combat Hostiles . | . . . Parts Melted . | . . . Heat Transferred 148 | . . 148 Parts Sabotaged . | . . . Parts Stolen . | . . . Parts Stripped . | . . . Power Chain Reactions . | . . . Missiles Intercepted . | . . . Alert | -11 -10 -9 ------- Run | Scr Mat Mat Peak Influence 194 | . 194 121 Initial 81 | . . 81 Average 43 | . 43 79 Maximum Alert Level . | . . . Low Security (%) 100 | 100 100 100 Level 1 . | . . . Level 2 . | . . . Level 3 . | . . . Level 4 . | . . . Level 5 . | . . . High Security . | . . . Max Security . | . . . Squads Dispatched 2 | . 2 . Investigation . | . . . Extermination . | . . . Reinforcement 2 | . 2 . Assault . | . . . Garrison . | . . . Intercept . | . . . Construction Impeded . | . . . Haulers Reinforced . | . . . Stealth | -11 -10 -9 --------- Run | Scr Mat Mat Distress Signals . | . . . Communications Jammed . | . . . Distress Signals . | . . . Times Spotted 18 | . 10 8 Peak Tracking Total 6 | . 4 6 Tactical Retreats 1 | . . 1 Traps | -11 -10 -9 ------- Run | Scr Mat Mat Traps Triggered . | . . . Indirectly . | . . . Trap Hack Attempts . | . . . Triggered . | . . . Disarmed . | . . . Reprogrammed . | . . . Reused . | . . . Traps Extracted . | . . . Installed . | . . . Triggered . | . . . Machines | -11 -10 -9 ---------- Run | Scr Mat Mat Machines Disabled 1 | . 1 . Max in Single Turn 1 | . 1 . Machines Sabotaged . | . . . Garrisons Compromised . | . . . Overloaded Fab Kills . | . . . Fab Network Shutdowns . | . . . Hacking | -11 -10 -9 --------- Run | Scr Mat Mat Machines Accessed . | . . . Terminals . | . . . Fabricators . | . . . Repair Stations . | . . . Recycling Units . | . . . Scanalyzers . | . . . Garrison Access . | . . . Total Hacks . | . . . Successful . | . . . Failed . | . . . Catastrophic . | . . . Database Lockouts . | . . . Manual . | . . . Terminals . | . . . Fabricators . | . . . Repair Stations . | . . . Recycling Units . | . . . Scanalyzers . | . . . Garrison Access . | . . . Terminal Hacks . | . . . Fabricator Hacks . | . . . Repair Station Hacks . | . . . Recycling Unit Hacks . | . . . Scanalyzer . | . . . Garrison Access Hacks . | . . . Unauthorized Hacks . | . . . Terminals . | . . . Fabricators . | . . . Repair Stations . | . . . Recycling Units . | . . . Scanalyzers . | . . . Garrison Access . | . . . Data Cores Recovered 1 | . 1 . Used . | . . . Hacking Detections . | . . . Full Trace Events . | . . . Feedback Events . | . . . Feedback Blocked . | . . . Robot Schematics Acquired . | . . . Robots Built . | . . . Matter . | . . . Time . | . . . Total Robot Build Rating . | . . . Part Schematics Acquired . | . . . Parts Built . | . . . Matter . | . . . Time . | . . . Total Part Build Rating . | . . . Parts Repaired . | . . . Time . | . . . Parts Recycled . | . . . Recycled Matter . | . . . Retrieved Matter . | . . . Retrieved Components . | . . . Parts Scanalyzed . | . . . Part Schematics Acquired . | . . . Parts Damaged . | . . . Bothacking | -11 -10 -9 ------------ Run | Scr Mat Mat Used RIF Installer . | . . . Robots Hacked . | . . . Non-combat . | . . . Combat . | . . . Robot Hacks Applied . | . . . Relay Couplers Released . | . . . Robots Rewired . | . . . Allies Hacked . | . . . Hacks Repelled . | . . . Allies | -11 -10 -9 -------- Run | Scr Mat Mat Total Allies . | . . . Largest Group . | . . . Highest-Rated Group . | . . . Highest-Rated Ally . | . . . Total Orders . | . . . Ally Attacks . | . . . Total Damage . | . . . Kills . | . . . Allies Corrupted . | . . . Allies Melted . | . . . Intel | -11 -10 -9 ------- Run | Scr Mat Mat Robot Analysis Total . | . . . Derelict Logs Recovered . | . . . Drone Launches . | . . . Drone Recoveries . | . . . Exploration | -11 -10 -9 ------------- Run | Scr Mat Mat Turns Passed 528 | 78 356 94 Spaces Moved 366 | 57 294 15 Core 12 | 8 . 4 Treads . | . . . Legs 86 | 49 37 . Wheels 268 | . 257 11 Hover . | . . . Flight . | . . . Fastest Speed 50 | 50 80 100 Average Speed 101 | 110 92 251 Slowest Speed 700 | 120 120 700 Overloaded Moves . | . . . Propulsion Burnouts . | . . . Robots Hopped . | . . . Cave-ins Triggered . | . . . Exploration Rate (%) 17 | 4 45 3 Regions Visited 2 Branch Regions . Pre-discovered Areas . | . . . Known Exits Taken . | . . . Unknown Exits Taken 2 | 1 1 . Scrap Searched . | . . . Spaces Dug . | . . . Terrain Destroyed 19 | . 19 . Melee . | . . . Projectile . | . . . AOE 19 | . 19 . Terrain Rammed . | . . . Walls Destroyed . | . . . Machines Disabled . | . . . Actions | -11 -10 -9 --------- Run | Scr Mat Mat Total 462 | 71 351 40 Wait 14 | . 14 . Move 364 | 56 293 15 Hop . | . . . Pick Up 14 | 9 4 1 Fast Attach 4 | . 4 . Attach 12 | 5 1 6 Detach . | . . . Swap 10 | 1 9 . Drop 6 | . 6 . Fire 35 | . 20 15 Melee . | . . . Ram 3 | . . 3 Kick . | . . . Crush . | . . . Escape Stasis . | . . . Rewire . | . . . Trap . | . . . Miscellaneous . | . . . Route ------- -11/Scrapyard -10/Materials (discovered 2 exits: [*Mat] / [*Min]) -9/Materials History --------- Turn | Location | Event 5 | -11/Scrapyard | Discovered new exit (range 15) 79 | -11/Scrapyard | Entered Materials 318 | -10/Materials | Build established: Mutant 360 | -10/Materials | Discovered new exit (range 15) 410 | -10/Materials | Discovered new exit (range 11) 435 | -10/Materials | Entered another Materials area 435 | -9/Materials | Evolved 2 slots: Utility x2 489 | -9/Materials | Core integrity fell below 50% 520 | -9/Materials | Core integrity fell below 20% 529 | -9/Materials | Destroyed by G-34 Mercenary with Small Laser Last Messages --------------- 00471_ S-10 Pest destroyed. 00478_ Lgt. Assault Rifle destroyed. 00478_ Slammed into B-36 Bruiser. 00487_ Core Shielding destroyed. 00490_ Acquired Lgt. Assault Rifle. 00490_ S-10 Pest destroyed. 00491_ Acquired 16 matter. 00495_ Knocked back. 00497_ S-10 Pest destroyed. 00508_ Lgt. Assault Rifle destroyed. 00508_ Sensor Array destroyed. 00508_ System corrupted by crushing effect (+4). 00508_ System corrupted by crushing effect (+1). 00515_ Utility Shielding destroyed. 00515_ System corrupted by crushing effect (+2). 00518_ Slammed into B-36 Bruiser. 00518_ Destabilizing: Core damaged (-12). 00520_ System corrupted: Matter fused (-9). 00520_ Knocked back. 00525_ Slammed into B-36 Bruiser. Map ----- +----------------------------------------------------+ | ?????????????????????????????????????????????????? | | ?????????????????????????????????????????????????? | | ?????????????????????????????????????????????????? | | ?????????????????????????????????????????????????? | | ?????????????????????????????????????????????????? | | ?????????????????????????????????????????????????? | | ?????????????????????????????????????????????????? | | ?????????????????????????????????????????????????? | | ?????????????????????????????????????????????????? | | ?????????????????????????????????????????????????? | | ?????????????????????????????????????????????????? | | ?????????????????????????????????????????????????? | | ?????????????????????????????????????????????????? | | ?????????????????????????????????????????????????? | | ?????????????????????????????????????????????????? | | ?????????????????????????????????????????????????? | | ?????????????????????????????????????????????????? | | ???????????????????????????????#?????????????????? | | ????????????????????#######??? #?????????????????? | | ????????????????????# ###+######+###?????????? | | ????????????????????# ????????? | | ????????????????????# *% "" ????????? | | ????????????????????# =%= "%%" ????????? | | ????????????????????# =*########???????????????? | | ??????????????######## g=####????????????????????? | | ??????????????# """ # @!!##???????????????????? | | ??????????????# """ # b !#???????????????????? | | ??????????????# """ + !#???????????????????? | | ??????????????# # !#???????????????????? | | ??????????????# # !#???????????????????? | | ??????????????# ?# !!##???????????????????? | | ??????????????######?########????????????????????? | | ?????????????????????????????????????????????????? | | ?????????????????????????????????????????????????? | | ?????????????????????????????????????????????????? | | ?????????????????????????????????????????????????? | | ?????????????????????????????????????????????????? | | ?????????????????????????????????????????????????? | | ?????????????????????????????????????????????????? | | ?????????????????????????????????????????????????? | | ?????????????????????????????????????????????????? | | | | | | | | | | | | | | | | | | | +----------------------------------------------------+ Best States ------------- Heat Dissipation 28 Energy Generation 10 Energy Capacity 250 Matter Stores 296 Matter Capacity 300 Sight Range 16 Robot Scan Range 10 Terrain Scan Density 10 Core Shielding 20 Utility Shielding 33 Evasion (%) 44 Item Schematics ----------------- None Robot Schematics ------------------ None Fabricated ------------ Nothing Alien Tech Used ----------------- None Achievements -------------- None Challenges ------------ None Game ------ Seed HeatSuperchargedMace Manual? 0 Play Time 00:14:55 Cumulative 4.0 hours Start 2022.03.08 @ 22:02:22 End 2022.03.08 @ 22:16:52 Sessions 1 Manual Loads 0 Difficulty Rogue Special Mode None Game No. 3 Rogue 3 Adventurer 0 Explorer 0 Win Type - Total 0 Types 0/0/0/0/0/0/0/0/0 Lore% 5 Gallery% 8 Achievement% 7 Wizard Run 0 Options --------- ASCII 0 Keyboard 0 Movement Mouse Keybinds 0 Fullscreen 2 Font 18/X11 Map View 76x50 Tactical HUD 1 Map Filters NONE Filters NONE Steam 1 RUN: 4572731f-009a-49d0-a14d-855dd9efe2ff